fUSD/lending_fUSD_20250628
["ID","MTS","AMOUNT","RATE_DAILY","PERIOD"]
[368331981,1751127033215,-490.0,0.00030136,9]
[368331982,1751127033224,-490.0,0.00030136,9]
[368331983,1751127033234,-490.0,0.00030136,9]
[368331984,1751127033244,-289.23845278,0.00030136,9]
[368331985,1751127033256,-200.76154722,0.00030136,9]
[368331986,1751127033267,-490.0,0.00030136,9]
[368331987,1751127033276,-490.0,0.00030136,9]
[368331988,1751127033286,-490.0,0.00030136,9]
[368331989,1751127033296,-490.0,0.00030136,9]
[368331990,1751127033306,-490.0,0.00030136,9]
[368331991,1751127033316,-490.0,0.00030136,9]
[368331992,1751127033326,-490.0,0.00030136,9]
[368331993,1751127033336,-500.0,0.00030136,9]
[368331995,1751127033351,-490.0,0.00030136,9]
[368331997,1751127033362,-1229.39,0.00030136,9]
[368331999,1751127033372,-490.0,0.00030136,9]
[368332000,1751127033383,-493.24973841,0.00030136,9]
[368332001,1751127033394,-490.0,0.00030136,9]
[368332002,1751127033403,-490.0,0.00030136,9]
[368332003,1751127033412,-490.0,0.00030136,9]
[368332004,1751127033422,-59.1971058,0.00030136,9]
[368332005,1751127033434,-430.8028942,0.00030136,9]
[368332006,1751127033444,-490.0,0.00030136,9]
[368332007,1751127033454,-490.0,0.00030136,9]
[368332008,1751127033463,-490.0,0.00030136,9]
[368332009,1751127033473,-490.0,0.00030136,9]
[368332010,1751127033483,-491.23014738,0.00030136,9]
[368332011,1751127033492,-490.0,0.00030136,9]
[368332012,1751127033502,-772.85,0.00030136,9]
[368332013,1751127033512,-490.0,0.00030136,9]
[368332014,1751127033522,-490.0,0.00030136,9]
[368332015,1751127033531,-504.22,0.00030136,9]
[368332016,1751127033541,-490.0,0.00030136,9]
[368332017,1751127033550,-490.0,0.00030136,9]
[368332018,1751127033560,-490.0,0.00030136,9]
[368332019,1751127033570,-490.0,0.00030136,9]
[368332020,1751127033580,-490.0,0.00030136,9]
[368332021,1751127033589,-490.0,0.00030136,9]
[368332022,1751127033599,-490.0,0.00030136,9]
[368332023,1751127033609,-490.0,0.00030136,9]
[368332024,1751127033618,-490.0,0.00030136,9]
[368332025,1751127033629,-490.0,0.00030136,9]
[368332026,1751127033638,-972.76,0.00030136,9]
[368332027,1751127033649,-887.64,0.00030136,9]
[368332028,1751127033659,-13241.05523691,0.00030139,2]
[368332029,1751127033670,-466.80584711,0.00030139,2]
[368332030,1751127033682,-7127.81565384,0.00030139,2]
[368332031,1751127033693,-3064.32326214,0.00030139,2]
[368332032,1751127033703,-11174.00773795,0.0003031,2]
[368332033,1751127033712,-490.0,0.00030409,9]
[368332034,1751127033722,-501.62874182,0.00030409,9]
[368332035,1751127033731,-235.84341816,0.00030409,9]
[368332036,1751127033741,-490.0,0.00030409,9]
[368332037,1751127033750,-490.0,0.00030409,9]
[368332038,1751127033760,-490.0,0.00030409,9]
[368332039,1751127033770,-490.0,0.00030409,9]
[368332040,1751127033779,-490.0,0.00030409,9]
[368332041,1751127033789,-490.0,0.00030409,9]
[368332042,1751127033798,-490.85157049,0.00030409,9]
[368332043,1751127033807,-490.0,0.00030409,9]
[368332044,1751127033817,-490.0,0.00030409,9]
[368332045,1751127033827,-490.0,0.00030409,9]
[368332046,1751127033837,-490.0,0.00030409,9]
[368332047,1751127033846,-490.0,0.00030409,9]
[368332048,1751127033855,-490.0,0.00030409,9]
[368332049,1751127033864,-490.0,0.00030409,9]
[368332050,1751127033874,-707.77,0.00030409,9]
[368332051,1751127033884,-2039.39,0.00030409,9]
[368332052,1751127033894,-1032.02,0.00030409,9]
[368332053,1751127033905,-955.27,0.00030409,9]
[368332054,1751127033914,-1983.49,0.00030409,9]
[368332055,1751127033925,-1007.05,0.00030409,9]
[368332056,1751127033935,-1439.67,0.00030409,9]
[368332057,1751127033946,-1982.75,0.00030409,9]
[368332058,1751127033956,-1774.05,0.00030409,9]
[368332059,1751127033965,-1393.8,0.00030409,9]
[368332060,1751127033975,-1542.14,0.00030409,9]
[368332061,1751127033984,-2456.76,0.00030409,9]
[368332062,1751127033994,-1690.62,0.00030409,9]
[368332063,1751127034004,-2322.24,0.00030409,9]
[368332064,1751127034014,-1414.4,0.00030409,9]
[368332065,1751127034024,-969.59,0.00030409,9]
[368332066,1751127034033,-490.0,0.00030409,9]
[368332067,1751127034044,-490.0,0.00030409,9]
[368332068,1751127034054,-973.79,0.00030409,9]
[368332069,1751127034065,-532.27,0.00030409,9]
[368332070,1751127034074,-1403.31,0.00030409,9]
[368332071,1751127034084,-566.4,0.00030409,9]
[368332072,1751127034094,-1038.76,0.00030409,9]
[368332073,1751127034104,-1376.27,0.00030409,9]
[368332074,1751127034114,-970.04,0.00030409,9]
[368332075,1751127034124,-904.08,0.00030409,9]
[368332076,1751127034133,-1037.25,0.00030409,9]
[368332077,1751127034144,-884.11,0.00030409,9]
[368332078,1751127034154,-744.62,0.00030409,9]
[368332079,1751127034164,-856.54,0.00030409,9]
[368332080,1751127034175,-1914.18,0.00030409,9]
[368332081,1751127034185,-490.0,0.0003041,9]
[368332082,1751127034195,-490.0,0.0003041,9]
[368332083,1751127034205,-490.0,0.0003041,9]
[368332084,1751127034215,-608.27830419,0.0003041,9]
[368332085,1751127034225,-490.0,0.0003041,9]
[368332086,1751127034235,-490.0,0.0003041,9]
[368332087,1751127034245,-300.0,0.0003041,9]
[368332088,1751127034255,-745.71,0.0003041,9]
[368332089,1751127034265,-490.0,0.0003041,9]
[368332090,1751127034275,-490.0,0.0003041,9]
[368332091,1751127034284,-490.0,0.0003041,9]
[368332092,1751127034294,-490.0,0.0003041,9]
[368332093,1751127034304,-267.43964795,0.0003041,9]
[368332094,1751127034318,-222.56035205,0.0003041,9]
[368332095,1751127034328,-490.0,0.0003041,9]
[368332096,1751127034338,-490.0,0.0003041,9]
[368332097,1751127034348,-490.0,0.0003041,9]
[368332098,1751127034358,-500.0,0.0003041,9]
[368332099,1751127034368,-490.0,0.0003041,9]
[368332100,1751127034377,-490.0,0.0003041,9]
[368332101,1751127034387,-490.0,0.0003041,9]
[368332102,1751127034399,-490.0,0.0003041,9]
[368332103,1751127034409,-490.0,0.0003041,9]
[368332104,1751127034418,-490.0,0.0003041,9]
[368332105,1751127034428,-490.0,0.0003041,9]
[368332106,1751127034437,-490.0,0.0003041,9]
[368332107,1751127034447,-490.0,0.0003041,9]
[368332108,1751127034456,-490.0,0.0003041,9]
[368332109,1751127034466,-490.0,0.0003041,9]
[368332110,1751127034474,-490.0,0.0003041,9]
[368332111,1751127034484,-490.0,0.0003041,9]
[368332112,1751127034494,-490.0,0.0003041,9]
[368332113,1751127034504,-490.0,0.0003041,9]
[368332114,1751127034514,-490.0,0.0003041,9]
[368332115,1751127034524,-490.0,0.0003041,9]
[368332116,1751127034534,-490.0,0.0003041,9]
[368332117,1751127034544,-490.0,0.0003041,9]
[368332118,1751127034554,-490.0,0.0003041,9]
[368332119,1751127034564,-490.0,0.0003041,9]
[368332120,1751127034849,-490.0,0.0003041,9]
[368332121,1751127034859,-1229.39,0.0003041,9]
[368332122,1751127034868,-490.0,0.0003041,9]
[368332123,1751127034879,-490.0,0.0003041,9]
[368332124,1751127034888,-490.0,0.0003041,9]
[368332125,1751127034898,-490.0,0.0003041,9]
[368332126,1751127034907,-490.0,0.0003041,9]
[368332127,1751127034917,-492.81576258,0.0003041,9]
[368332128,1751127034926,-490.0,0.0003041,9]
[368332129,1751127034935,-490.0,0.0003041,9]
[368332130,1751127034944,-490.0,0.0003041,9]
[368332131,1751127034954,-772.85,0.0003041,9]
[368332132,1751127034963,-490.0,0.0003041,9]
[368332133,1751127034973,-490.0,0.0003041,9]
[368332134,1751127034983,-504.22,0.0003041,9]
[368332135,1751127034992,-490.0,0.0003041,9]
[368332136,1751127035001,-354.42428426,0.0003041,9]
[368332137,1751127035010,-490.0,0.0003041,9]
[368332138,1751127035019,-490.0,0.0003041,9]
[368332139,1751127035028,-490.0,0.0003041,9]
[368332140,1751127035038,-490.0,0.0003041,9]
[368332141,1751127035048,-490.0,0.0003041,9]
[368332142,1751127035057,-490.0,0.0003041,9]
[368332143,1751127035066,-490.0,0.0003041,9]
[368332144,1751127035076,-490.0,0.0003041,9]
[368332145,1751127035085,-972.76,0.0003041,9]
[368332146,1751127035096,-887.64,0.0003041,9]
[368332147,1751127035106,-1195.67569284,0.00030583,2]
[368332148,1751127035116,-168.87258988,0.00030583,15]
[368332149,1751127035125,-166.67,0.0003064,2]
[368332150,1751127035134,-4675.39,0.00030663,2]
[368332151,1751127035143,-490.0,0.00030672,9]
[368332152,1751127035152,-490.0,0.00030672,9]
[368332153,1751127035161,-1000.0,0.00030672,9]
[368332154,1751127035170,-490.0,0.00030672,9]
[368332155,1751127035180,-490.0,0.00030672,9]
[368332156,1751127035190,-490.0,0.00030672,9]
[368332157,1751127035200,-490.0,0.00030672,9]
[368332158,1751127035209,-501.26206944,0.00030672,9]
[368332159,1751127035219,-490.0,0.00030672,9]
[368332160,1751127035229,-490.0,0.00030672,9]
[368332161,1751127035238,-490.0,0.00030672,9]
[368332162,1751127035247,-490.0,0.00030672,9]
[368332163,1751127035258,-547.99,0.00030672,9]
[368332164,1751127035268,-490.0,0.00030672,9]
[368332165,1751127035278,-490.0,0.00030672,9]
[368332166,1751127035287,-490.0,0.00030672,9]
[368332167,1751127035297,-496.9660629,0.00030672,9]
[368332168,1751127035306,-740.17,0.00030672,9]
[368332169,1751127035315,-490.0,0.00030672,9]
[368332170,1751127035325,-558.87,0.00030672,9]
[368332171,1751127035334,-803.17,0.00030672,9]
[368332172,1751127035347,-490.0,0.00030672,9]
[368332173,1751127035356,-1019.29,0.00030672,9]
[368332174,1751127035366,-1175.88,0.00030672,9]
[368332175,1751127035375,-1149.58,0.00030672,9]
[368332176,1751127035384,-490.0,0.00030672,9]
[368332177,1751127035394,-490.0,0.00030672,9]
[368332178,1751127035404,-490.0,0.00030672,9]
[368332179,1751127035413,-490.0,0.00030672,9]
[368332180,1751127035423,-490.0,0.00030672,9]
[368332181,1751127035433,-490.0,0.00030672,9]
[368332182,1751127035442,-2359.85,0.00030672,9]
[368332183,1751127035451,-490.0,0.00030672,9]
[368332184,1751127035461,-905.54,0.00030672,9]
[368332185,1751127035470,-536.0,0.00030672,9]
[368332186,1751127035480,-490.0,0.00030672,9]
[368332187,1751127035490,-1156.19765124,0.00030672,9]
[368332188,1751127038523,-100.52234876,0.00030672,9]
[368332189,1751127038533,-350.13341375,0.00030672,9]
[368332190,1751127038545,-169.95658625,0.00030672,9]
[368332191,1751127038554,-917.86,0.00030672,9]
[368332192,1751127038564,-523.33,0.00030672,9]
[368332193,1751127038573,-490.0,0.00030672,9]
[368332194,1751127038581,-945.59,0.00030672,9]
[368332195,1751127038591,-490.0,0.00030672,9]
[368332196,1751127038600,-1025.49,0.00030672,9]
[368332197,1751127038609,-896.35,0.00030672,9]
[368332198,1751127038619,-490.0,0.00030672,9]
[368332199,1751127038628,-162.09252269,0.00030672,2]
[368332200,1751127038637,-1205.11,0.00030672,9]
[368332201,1751127038648,-490.0,0.00030673,9]
[368332202,1751127038657,-579.65,0.00030673,9]
[368332203,1751127038666,-490.0,0.00030673,9]
[368332204,1751127038676,-490.0,0.00030673,9]
[368332205,1751127038685,-490.0,0.00030673,9]
[368332206,1751127038694,-490.0,0.00030673,9]
[368332207,1751127038704,-490.0,0.00030673,9]
[368332208,1751127038713,-490.0,0.00030673,9]
[368332209,1751127038723,-490.0,0.00030673,9]
[368332210,1751127038732,-490.0,0.00030673,9]
[368332211,1751127038742,-490.0,0.00030673,9]
[368332212,1751127038752,-490.0,0.00030673,9]
[368332213,1751127038761,-490.0,0.00030673,9]
[368332214,1751127038770,-490.0,0.00030673,9]
[368332215,1751127038781,-490.0,0.00030673,9]
[368332216,1751127038791,-490.0,0.00030673,9]
[368332217,1751127038800,-490.0,0.00030673,9]
[368332218,1751127038810,-490.0,0.00030673,9]
[368332219,1751127038819,-490.0,0.00030673,9]
[368332220,1751127038829,-1000.0,0.00030673,9]
[368332221,1751127038839,-2521.53,0.00030673,9]
[368332222,1751127038849,-1502.17,0.00030673,9]
[368332223,1751127038858,-490.0,0.00030673,9]
[368332224,1751127038868,-500.0,0.00030673,9]
[368332225,1751127038877,-1115.21,0.00030673,9]
[368332226,1751127038886,-420.87344098,0.00030673,9]
[368332227,1751127038897,-490.0,0.00030673,9]
[368332228,1751127038906,-1007.242306,0.00030673,9]
[368332229,1751127038915,-490.0,0.00030673,9]
[368332230,1751127038924,-4646.96,0.00030673,9]
[368332231,1751127038933,-1743.591254,0.00030673,9]
[368332232,1751127038942,-2711.24,0.00030673,9]
[368332233,1751127038951,-817.339594,0.00030673,9]
[368332256,1751127039216,-163.47826314,0.00030673,9]
[368332258,1751127039227,-156.833633,0.00030673,9]
[368332260,1751127039236,-1104.91,0.00030673,9]
[368332262,1751127039246,-165.056106,0.00030673,9]
[368332264,1751127039255,-181.414053,0.00030673,9]
[368332266,1751127039264,-1694.66,0.00030673,9]
[368332268,1751127039274,-1258.13,0.00030673,9]
[368332270,1751127039283,-707.58,0.00030673,9]
[368332272,1751127039292,-638.59,0.00030673,9]
[368332274,1751127039302,-1388.25,0.00030673,9]
[368332276,1751127039311,-940.08,0.00030673,9]
[368332278,1751127039320,-597.68654094,0.00030673,9]
[368332281,1751127039333,-3723.01345906,0.00030673,9]
[368332283,1751127039343,-490.0,0.00030673,9]
[368332285,1751127039356,-1237.79,0.00030673,9]
[368332287,1751127039365,-1387.21,0.00030673,9]
[368332289,1751127039374,-490.0,0.00030673,9]
[368332291,1751127039383,-954.12,0.00030673,9]
[368332293,1751127039394,-813.75,0.00030673,9]
[368332295,1751127039404,-3596.5,0.00030673,9]
[368332297,1751127039414,-1282.84,0.00030673,9]
[368332299,1751127039424,-1123.66,0.00030673,9]
[368332301,1751127039434,-273.11318094,0.00030673,9]
[368332303,1751127039446,-579.87681906,0.00030673,9]
[368332305,1751127039455,-490.0,0.00030673,9]
[368332307,1751127039464,-677.42,0.00030673,9]
[368332309,1751127039474,-1659.92671119,0.00030674,2]
[368332311,1751127039483,-500.0,0.00030682,2]
[368332313,1751127039492,-500.0,0.00030682,2]
[368332315,1751127039501,-207.5018521,0.00030682,2]
[368332318,1751127039517,-490.0,0.00030673,9]
[368332320,1751127039527,-292.4981479,0.00030682,2]
[368332322,1751127039536,-500.0,0.00030682,2]
[368332324,1751127039545,-500.0,0.00030682,2]
[368332326,1751127039555,-199.25648398,0.00030682,2]
[368332328,1751127039564,-370.57416996,0.00030682,2]
[368332330,1751127039573,-500.0,0.00030682,2]
[368332332,1751127039584,-500.0,0.00030682,2]
[368332334,1751127039593,-500.0,0.00030682,2]
[368332336,1751127039603,-500.0,0.00030682,2]
[368332338,1751127039612,-500.0,0.00030682,2]
[368332340,1751127039622,-459.40191897,0.00030682,2]
[368332342,1751127039631,-500.0,0.00030682,2]
[368332344,1751127039640,-500.0,0.00030682,2]
[368332345,1751127039651,-500.0,0.00030682,2]
[368332346,1751127039660,-500.0,0.00030682,2]
[368332347,1751127039669,-150.0,0.00030682,2]
[368332348,1751127039679,-490.0,0.00030683,9]
[368332349,1751127039688,-490.0,0.00030683,9]
[368332350,1751127039697,-490.0,0.00030683,9]
[368332351,1751127039706,-490.0,0.00030683,9]
[368332352,1751127039715,-490.0,0.00030683,9]
[368332353,1751127039725,-490.0,0.00030683,9]
[368332354,1751127039734,-490.0,0.00030683,9]
[368332355,1751127039744,-490.0,0.00030683,9]
[368332357,1751127039753,-356.40364887,0.00030683,9]
[368332358,1751127039762,-490.0,0.00030683,9]
[368332359,1751127039773,-490.0,0.00030683,9]
[368332360,1751127039782,-490.0,0.00030683,9]
[368332361,1751127039791,-490.0,0.00030683,9]
[368332362,1751127039801,-490.0,0.00030683,9]
[368332363,1751127039810,-490.0,0.00030683,9]
[368332364,1751127039820,-490.0,0.00030683,9]
[368332365,1751127039829,-490.0,0.00030683,9]
[368332366,1751127039839,-490.0,0.00030683,9]
[368332367,1751127039848,-490.0,0.00030683,9]
[368332368,1751127039858,-490.0,0.00030683,9]
[368332369,1751127039867,-490.0,0.00030683,9]
[368332370,1751127039876,-490.0,0.00030683,9]
[368332371,1751127039886,-490.0,0.00030683,9]
[368332372,1751127039895,-361.77387456,0.00030683,9]
[368332373,1751127039905,-490.0,0.00030683,9]
[368332374,1751127039915,-490.0,0.00030683,9]
[368332375,1751127039924,-490.0,0.00030683,9]
[368332376,1751127039934,-490.0,0.00030683,9]
[368332377,1751127039943,-490.0,0.00030683,9]
[368332378,1751127039953,-490.0,0.00030683,9]
[368332379,1751127039962,-490.0,0.00030683,9]
[368332380,1751127039972,-490.0,0.00030683,2]
[368332381,1751127039981,-490.0,0.00030683,9]
[368332382,1751127039990,-490.0,0.00030683,9]
[368332383,1751127040000,-739.08,0.00030683,9]
[368332384,1751127040009,-490.0,0.00030683,9]
[368332385,1751127040019,-490.0,0.00030683,9]
[368332386,1751127040028,-490.0,0.00030683,9]
[368332387,1751127040038,-490.0,0.00030683,9]
[368332388,1751127040048,-490.0,0.00030683,9]
[368332389,1751127040057,-490.0,0.00030683,9]
[368332390,1751127040067,-953.0,0.00030683,9]
[368332391,1751127040076,-490.0,0.00030683,9]
[368332392,1751127040086,-490.0,0.00030683,9]
[368332393,1751127040095,-1866.06,0.00030683,9]
[368332394,1751127040105,-490.0,0.00030683,9]
[368332395,1751127040114,-490.0,0.00030683,9]
[368332396,1751127040123,-490.0,0.00030683,9]
[368332397,1751127040132,-490.0,0.00030683,9]
[368332398,1751127040141,-490.0,0.00030683,9]
[368332400,1751127040151,-490.0,0.00030683,9]
[368332401,1751127040160,-490.0,0.00030683,9]
[368332402,1751127040170,-490.0,0.00030683,9]
[368332403,1751127040180,-490.0,0.00030683,9]
[368332404,1751127040190,-490.0,0.00030683,9]
[368332405,1751127040200,-490.0,0.00030683,9]
[368332406,1751127040209,-490.0,0.00030683,9]
[368332407,1751127040218,-490.0,0.00030683,9]
[368332408,1751127040228,-490.0,0.00030683,9]
[368332409,1751127040238,-490.0,0.00030683,9]
[368332410,1751127040247,-490.0,0.00030683,9]
[368332411,1751127040257,-944.26,0.00030683,9]
[368332412,1751127040267,-490.0,0.00030683,9]
[368332413,1751127040276,-490.0,0.00030683,9]
[368332414,1751127040285,-490.0,0.00030683,9]
[368332415,1751127040295,-490.0,0.00030683,9]
[368332416,1751127040305,-490.0,0.00030683,9]
[368332417,1751127040315,-490.0,0.00030683,9]
[368332418,1751127040324,-490.0,0.00030683,9]
[368332419,1751127040333,-490.0,0.00030683,9]
[368332420,1751127040344,-491.9888631,0.00030683,9]
[368332421,1751127040354,-490.0,0.00030683,9]
[368332422,1751127040363,-490.0,0.00030683,9]
[368332423,1751127040373,-490.0,0.00030683,9]
[368332424,1751127040383,-490.0,0.00030683,9]
[368332425,1751127040392,-490.0,0.00030683,9]
[368332426,1751127040403,-490.0,0.00030683,9]
[368332427,1751127040416,-490.0,0.00030683,9]
[368332428,1751127040427,-490.0,0.00030683,9]
[368332429,1751127040438,-994.17,0.00030683,9]
[368332430,1751127040448,-490.0,0.00030683,9]
[368332431,1751127040457,-490.0,0.00030683,9]
[368332432,1751127040467,-917.26,0.00030683,9]
[368332433,1751127040477,-490.0,0.00030683,9]
[368332434,1751127040487,-490.0,0.00030683,9]
[368332435,1751127040497,-490.0,0.00030683,9]
[368332436,1751127040507,-490.0,0.00030683,9]
[368332437,1751127040517,-490.0,0.00030683,9]
[368332438,1751127040526,-490.0,0.00030683,9]
[368332439,1751127040535,-834.16,0.00030683,9]
[368332440,1751127040546,-490.0,0.00030683,9]
[368332441,1751127040556,-490.0,0.00030683,9]
[368332442,1751127040565,-490.0,0.00030683,9]
[368332443,1751127040575,-490.0,0.00030683,9]
[368332444,1751127040585,-490.0,0.00030683,9]
[368332445,1751127040595,-490.0,0.00030683,9]
[368332446,1751127040605,-490.0,0.00030683,9]
[368332447,1751127040615,-490.0,0.00030683,9]
[368332448,1751127040625,-490.0,0.00030683,9]
[368332449,1751127040634,-490.0,0.00030683,9]
[368332450,1751127040644,-490.0,0.00030683,9]
[368332451,1751127040655,-668.47,0.00030683,9]
[368332452,1751127040665,-490.0,0.00030683,9]
[368332453,1751127040675,-161.96490054,0.00030683,9]
[368332454,1751127040684,-490.0,0.00030683,9]
[368332455,1751127040694,-490.0,0.00030683,9]
[368332456,1751127040703,-490.0,0.00030683,9]
[368332457,1751127040713,-490.90464673,0.00030683,9]
[368332458,1751127040722,-490.0,0.00030683,9]
[368332459,1751127040731,-490.0,0.00030683,9]
[368332460,1751127040741,-490.0,0.00030683,9]
[368332461,1751127040750,-490.0,0.00030683,9]
[368332462,1751127040760,-490.0,0.00030683,9]
[368332463,1751127040770,-573.62,0.00030683,9]
[368332464,1751127040779,-490.0,0.00030683,9]
[368332465,1751127040790,-445.25324706,0.00030683,9]
[368332466,1751127040800,-490.0,0.00030683,9]
[368332467,1751127040809,-490.0,0.00030683,9]
[368332468,1751127040819,-490.0,0.00030683,9]
[368332469,1751127040829,-627.55,0.00030683,9]
[368332470,1751127040839,-492.50645314,0.00030683,9]
[368332471,1751127040848,-545.89234405,0.00030683,9]
[368332472,1751127040858,-490.0,0.00030683,9]
[368332473,1751127040871,-490.0,0.00030683,9]
[368332474,1751127040881,-595.52,0.00030683,9]
[368332475,1751127040891,-490.0,0.00030683,9]
[368332476,1751127040901,-490.0,0.00030683,9]
[368332477,1751127040910,-490.0,0.00030683,9]
[368332478,1751127040920,-490.0,0.00030683,9]
[368332479,1751127040930,-490.0,0.00030683,9]
[368332480,1751127040940,-490.0,0.00030683,9]
[368332481,1751127040950,-490.0,0.00030683,9]
[368332482,1751127040959,-225.53965767,0.00030683,9]
[368332483,1751127040969,-490.0,0.00030683,9]
[368332484,1751127040979,-496.30647167,0.00030683,9]
[368332485,1751127040989,-490.0,0.00030683,9]
[368332486,1751127040999,-490.0,0.00030683,9]
[368332487,1751127041010,-490.0,0.00030683,9]
[368332488,1751127041019,-543.51,0.00030683,9]
[368332489,1751127041029,-490.0,0.00030683,9]
[368332490,1751127041039,-490.0,0.00030683,9]
[368332491,1751127041049,-490.0,0.00030683,9]
[368332492,1751127041059,-490.0,0.00030683,9]
[368332493,1751127041068,-689.4,0.00030683,9]
[368332494,1751127041078,-490.0,0.00030683,9]
[368332495,1751127041088,-490.0,0.00030683,9]
[368332496,1751127041098,-490.0,0.00030683,9]
[368332497,1751127041108,-490.0,0.00030683,9]
[368332498,1751127041118,-490.0,0.00030683,9]
[368332499,1751127041127,-490.0,0.00030683,9]
[368332500,1751127041141,-490.0,0.00030683,9]
[368332501,1751127041151,-490.0,0.00030683,9]
[368332502,1751127041161,-490.0,0.00030683,9]
[368332503,1751127041170,-490.0,0.00030683,9]
[368332504,1751127041180,-490.0,0.00030683,9]
[368332505,1751127041190,-490.0,0.00030683,9]
[368332506,1751127041200,-490.0,0.00030683,9]
[368332507,1751127041210,-490.0,0.00030683,9]
[368332508,1751127041220,-492.96473166,0.00030683,9]
[368332509,1751127041230,-490.0,0.00030683,9]
[368332510,1751127041239,-490.0,0.00030683,9]
[368332511,1751127041249,-490.0,0.00030683,9]
[368332512,1751127041258,-490.0,0.00030683,9]
[368332513,1751127041268,-493.52780893,0.00030683,9]
[368332514,1751127041277,-490.0,0.00030683,9]
[368332515,1751127041287,-490.0,0.00030683,9]
[368332516,1751127041297,-490.0,0.00030683,9]
[368332517,1751127041306,-490.0,0.00030683,9]
[368332518,1751127041315,-490.0,0.00030683,9]
[368332519,1751127041325,-490.0,0.00030683,9]
[368332520,1751127041335,-490.0,0.00030683,9]
[368332521,1751127041347,-490.0,0.00030683,9]
[368332522,1751127041358,-490.0,0.00030683,9]
[368332523,1751127041367,-1176.69,0.00030683,9]
[368332524,1751127041377,-490.0,0.00030683,9]
[368332525,1751127041387,-494.95013335,0.00030683,9]
[368332526,1751127041396,-1075.47,0.00030683,9]
[368332527,1751127041407,-490.0,0.00030683,9]
[368332528,1751127041417,-490.0,0.00030683,9]
[368332529,1751127041427,-492.79824204,0.00030683,9]
[368332530,1751127041437,-490.0,0.00030683,9]
[368332531,1751127041447,-688.03,0.00030683,9]
[368332532,1751127041456,-491.55369924,0.00030683,9]
[368332533,1751127041466,-490.0,0.00030683,9]
[368332534,1751127041476,-490.0,0.00030683,9]
[368332535,1751127041486,-490.0,0.00030683,9]
[368332536,1751127041496,-490.0,0.00030683,9]
[368332537,1751127041505,-547.6173573,0.00030683,9]
[368332538,1751127041515,-490.0,0.00030683,9]
[368332539,1751127041524,-490.0,0.00030683,9]
[368332540,1751127041535,-490.0,0.00030683,9]
[368332541,1751127041544,-490.0,0.00030683,9]
[368332542,1751127041554,-490.0,0.00030683,9]
[368332543,1751127041563,-529.89,0.00030683,9]
[368332544,1751127041573,-490.0,0.00030683,9]
[368332545,1751127041583,-490.0,0.00030683,9]
[368332546,1751127041593,-490.0,0.00030683,9]
[368332547,1751127041602,-490.0,0.00030683,9]
[368332548,1751127041612,-413.36428208,0.00030683,9]
[368332549,1751127041622,-776.12,0.00030683,9]
[368332550,1751127041632,-490.0,0.00030683,9]
[368332551,1751127041642,-490.0,0.00030683,9]
[368332552,1751127041652,-490.0,0.00030683,9]